[Event "5th Sharjah Masters 2022"]
[Site "Sharjah"]
[Date "2022.05.22"]
[Round "2.23"]
[White "Ponkratov, Pavel"]
[Black "Aditya Mittal"]
[Result "1-0"]
[ECO "B55"]
[WhiteElo "2624"]
[BlackElo "2490"]
[Annotator "TA"]
[PlyCount "71"]
[EventDate "2022.05.21"]
[EventType "swiss"]
[EventCountry "UAE"]
[SourceTitle "playchess.com"]
[Source "ChessBase"]
[SourceQuality "1"]
[TimeControl "5400+30"]

{[%evp 9,71,10,10,8,16,-16,-5,-13,-4,-10,-16,0,0,-17,0,-16,73,61,61,67,78,63,150,156,153,150,144,131,302,316,273,290,272,268,461,492,615,618,568,469,942,937,914,929,922,904,914,676,848,839,1361,946,4890,5489,5210,4886,29969,29970,29985,29986,29986,29977,6114,5800]} 1. e4 {[%emt 0:00:03]} c5 {[%emt 0:00:12]} 2. Nf3 {[%emt 0:00:04][%cal Bg1f3,Bf3d4,Bd4f5][%mdl 32]} d6 {[%emt 0:00:04]} 3. d4 {[%emt 0:00:05]} cxd4 {[%emt 0:00:04]} 4. Nxd4 {[%emt 0:00:03]} Nf6 {[%emt 0:00:06]} 5. Bb5+ {[%emt 0:00:03]} Nbd7 {[%emt 0:02:18]} 6. c4 {[%emt 0:00:06] B55: Sicilian: 2...d6 3 d4 cxd4 4 Nxd4 Nf6 5 f3.} a6 {[%emt 0:04:37]} 7. Ba4 {[%emt 0:00:13]} (7. Bxd7+ $5 Bxd7 8. Qd3 $11) 7... e5 {[%emt 0:11:32]} 8. Nf5 {[%emt 0:00:19] The position is equal.} Nxe4 {[%emt 0:05:14]} 9. O-O {[%emt 0:00:24] [#]} g6 $146 {[%emt 0:08:53]} ({Predecessor:} 9... Rb8 10. Re1 b5 11. Bc2 Ndf6 12. Qf3 {½-½ (12) Maurizzi,M (2493)-Wachinger,N (2376) Terme Catez 2022}) 10. Ne3 {[%emt 0:00:39]} Nec5 {[%emt 0:04:04]} 11. Nc3 {[%emt 0:00:42]} Nxa4 {[%emt 0:08:06]} 12. Qxa4 {[%emt 0:00:15]} b5 {[%emt 0:05:05] [#]} (12... f5 $1 $11) 13. Nxb5 $1 {[%emt 0:10:24][%mdl 64] Pin} Bb7 {[%emt 0:05:12]} 14. Nc3 {[%emt 0:00:29][%cal Bb5c3,Bc3e4,Be4g5][%mdl 32]} Rc8 {[%emt 0:01:39]} 15. Rd1 {[%emt 0:07:31]} Qc7 {[%emt 0:05:35]} (15... f5 $14) 16. b4 $16 {[%emt 0:07:37] Black must now prevent Ncd5. White is more active.} Qc6 {[%emt 0:03:06]} 17. Qb3 {[%emt 0:07:59] aiming for Ncd5.} Bh6 {[%emt 0:05:17] And now ...Bxe3 would win.} 18. Ned5 {[%emt 0:18:25]} Bxc1 {[%emt 0:12:26] This move loses the game for Black.} (18... Bf8 $16) 19. Ne4 $18 {[%emt 0:00:39]} Kf8 {[%emt 0:04:55]} 20. Raxc1 {[%emt 0:01:11] Hoping for a4.} f5 {[%emt 0:02:00]} 21. Ng5 {[%emt 0:03:39] Ne3 is the strong threat.} Nb6 $2 {[%emt 0:02:27] [#]} (21... Kg7 22. Ne6+ Kf7) 22. Ne3 $1 {[%emt 0:02:30] Threatens to win with c5. Pair of Knights!} (22. Ne6+ Kf7 23. a4 (23. Ng5+ Kg7 $11) 23... Nxd5 $11) 22... d5 {[%emt 0:05:10]} 23. b5 {[%emt 0:05:40]} axb5 {[%emt 0:01:00]} 24. Qa3+ {[%emt 0:00:05]} Ke8 {[%emt 0:01:27]} (24... Kg8 $142 25. cxd5 (25. Qe7 Qd7 $14) 25... Qd7) 25. cxd5 {[%emt 0:01:16]} Qd7 {[%emt 0:00:07]} 26. Qb2 {[%emt 0:00:15]} Qd6 {[%emt 0:01:35]} 27. Qxb5+ {[%emt 0:00:11]} Ke7 {[%emt 0:00:06]} 28. Rb1 {[%emt 0:00:13]} Nd7 {[%emt 0:01:24]} 29. Qxb7 {[%emt 0:00:07]} Rc5 {[%emt 0:00:30]} 30. Ne6 {[%emt 0:00:33]} Rb8 {[%emt 0:00:02] [#]} 31. Qxb8 $3 {[%emt 0:00:46]} Nxb8 {[%emt 0:00:06]} 32. Nxc5 {[%emt 0:00:05]} Qxc5 {[%emt 0:00:51]} 33. d6+ {[%emt 0:00:06]} Ke6 {[%emt 0:00:31]} 34. Rxb8 {[%emt 0:00:05]} f4 {[%emt 0:00:03]} 35. Nf1 {[%emt 0:00:11]} Qc2 {[%emt 0:00:39]} 36. Rd2 {[%emt 0:35:37] Weighted Error Value: White=0.15 (very precise) /Black=0.57} 1-0

[Event "5th Sharjah Masters 2022"]
[Site "Sharjah"]
[Date "2022.05.22"]
[Round "2.24"]
[White "Msellek, Ilyass"]
[Black "Ivic, Velimir"]
[Result "1-0"]
[ECO "B51"]
[WhiteElo "2411"]
[BlackElo "2623"]
[Annotator "TA"]
[PlyCount "91"]
[EventDate "2022.05.21"]
[EventType "swiss"]
[EventCountry "UAE"]
[SourceTitle "playchess.com"]
[Source "ChessBase"]
[SourceQuality "1"]
[TimeControl "5400+30"]

{[%evp 9,91,20,12,21,6,14,41,53,43,47,56,40,53,43,82,27,91,89,95,99,96,29,44,35,53,33,46,29,43,36,81,67,80,61,99,20,69,-25,134,124,110,133,127,27,37,37,200,141,149,150,136,145,583,581,572,552,575,531,568,479,587,560,521,488,572,558,999,1008,923,867,1177,1160,1150,1149,1184,1152,2122,1043,2213,1778,6091,6091,1563,1478]} 1. e4 {[%emt 0:00:07]} c5 {[%emt 0:00:06]} 2. Nf3 {[%emt 0:00:11]} d6 {[%emt 0:00:06]} 3. Bb5+ {[%emt 0:00:39]} Nd7 {[%emt 0:00:09]} 4. O-O {[%emt 0:05:27]} a6 {[%emt 0:00:56]} 5. Bd3 {[%emt 0:00:11]} Ngf6 {[%emt 0:00:11]} 6. c3 {[%emt 0:01:21] B51: Sicilian: Moscow Variation (3 Bb5+) without 3...Bd7.} b5 {[%emt 0:04:56]} 7. a4 {[%emt 1:26:04]} c4 {[%emt 0:00:25]} 8. Bc2 {[%emt 0:00:00] White is slightly better.} Bb7 {[%emt 0:00:24]} 9. axb5 {[%emt 0:00:00]} axb5 {[%emt 0:15:26]} 10. Rxa8 {[%emt 0:00:00]} Bxa8 {[%emt 0:02:02]} 11. Na3 {[%emt 0:00:00] [#]} e6 $146 {[%emt 0:28:27]} ({Predecessor:} 11... Nxe4 12. Nxb5 Nec5 13. Qe2 Nb6 14. Na3 Bd5 15. Ne1 Qa8 16. f3 e6 17. d3 cxd3 18. Nxd3 {0-1 (51) Vagman,R (2031)-Nedobora,M (2362) Petah Tikva 2019}) 12. Nxb5 {[%emt 0:00:00]} (12. Qe2 $16) 12... Bxe4 {[%emt 0:00:45]} (12... Nxe4 $11 13. d3 cxd3 14. Qxd3 (14. Bxd3 Nef6 $16) 14... Be7) 13. Bxe4 $16 {[%emt 0:00:00]} Nxe4 {[%emt 0:00:07]} 14. d3 {[%emt 0:00:00]} cxd3 {[%emt 0:00:41]} 15. c4 {[%emt 0:00:00]} (15. Qxd3 $16 d5 16. Bf4) 15... Be7 {[%emt 0:02:43]} 16. Qxd3 {[%emt 0:00:00]} Ndf6 {[%emt 0:01:40]} (16... Ndc5 17. Qc2 $16) 17. Nfd4 {[%emt 0:00:00] Strongly threatening b4.} Qd7 $1 {[%emt 0:02:00]} 18. b4 {[%emt 0:00:00]} O-O $1 {[%emt 0:01:50]} 19. Nc2 {[%emt 0:00:00]} h6 {[%emt 0:02:08]} 20. f3 {[%emt 0:00:00]} Ng5 {[%emt 0:00:13]} 21. Rd1 {[%emt 0:00:00]} d5 {[%emt 0:03:19]} 22. Nc3 {[%emt 0:00:00]} ({White should try} 22. c5 $16) 22... Rd8 {[%emt 0:01:30]} (22... Rb8 $11 {should be considered.}) 23. Bf4 {[%emt 0:00:00]} ({White should play} 23. c5 $14) 23... Qb7 $2 {[%emt 0:11:41]} (23... dxc4 $11 24. Qxc4 Nd5) 24. c5 {[%emt 0:00:15]} d4 {[%emt 0:00:23] [#]} 25. Nb5 $36 {[%emt 0:02:06][%mdl 2048] Black is under strong pressure.} (25. Nxd4 Qxb4 26. Bd6 Bxd6 27. cxd6 Qxd6 $17) 25... Nd5 {[%emt 0:01:32][%cal Bf6d5,Bd5b4,Bb4c2][%mdl 32]} 26. Nd6 {[%emt 0:02:01]} (26. Bd6 $16) 26... Qb8 $1 $11 {[%emt 0:03:58]} ({Less strong is} 26... Bxd6 27. Bxd6 Nc3 28. Rd2 $16) 27. Qxd4 {[%emt 0:00:55][%cal Od6f7] Black must now prevent Nxf7!} Bf6 $2 {[%emt 0:03:19]} (27... Nxf4 $14 28. Qxf4 f6) 28. Be5 {[%emt 0:00:14] Hoping for b5.} Nxb4 {[%emt 0:01:02] [#]} 29. Rb1 $1 {[%emt 0:04:36]} ({But not} 29. Nxb4 $6 Bxe5 30. Qxe5 Qxb4 $14) ({Resist} 29. Bxf6 Nxc2 30. Qf2 gxf6 $16) 29... Nxc2 {[%emt 0:05:57]} 30. Rxb8 {[%emt 0:00:04]} Rxb8 {[%emt 0:00:17][%mdl 8192] Loses the game.} (30... Nxd4 $16 31. Rxd8+ Bxd8 32. Bxd4 e5 33. Bxe5 f6) 31. Qc3 $18 {[%emt 0:00:59] White is clearly winning.} Rb1+ {[%emt 0:00:05]} 32. Kf2 {[%emt 0:00:05]} Bxe5 {[%emt 0:00:26]} 33. Qxe5 {[%emt 0:00:39] Threatens to win with c6.} Nb4 {[%emt 0:00:13] ...Nd3+ is the strong threat.} 34. Qc3 {[%emt 0:00:41] Prevents Nd3+.} Nc6 {[%emt 0:01:49]} 35. Qc2 {[%emt 0:00:20]} Rb4 {[%emt 0:00:58]} 36. Qa2 {[%emt 0:00:18]} Kh7 {[%emt 0:00:48]} 37. Qa8 {[%emt 0:00:46]} Rb2+ {[%emt 0:01:23]} 38. Kg3 {[%emt 0:00:30]} Nd4 {[%emt 0:00:26]} 39. h4 {[%emt 0:00:29] Active counter play!} Ne2+ {[%emt 0:00:07]} 40. Kh2 {[%emt 0:00:30]} Rb4 {[%emt 0:00:09]} 41. g3 {[%emt 0:00:47]} Rb2 {[%emt 0:04:43]} 42. hxg5 {[%emt 0:00:13]} hxg5 {[%emt 0:00:02]} 43. Qa1 {[%emt 0:00:27]} Rd2 {[%emt 0:00:15]} 44. Ne4 {[%emt 0:00:22]} Rc2 {[%emt 0:00:18]} 45. Qb1 {[%emt 0:00:37]} Nd4+ {[%emt 0:01:56] [#]} 46. Qxc2 $3 {[%emt 0:00:14][%mdl 512] Weighted Error Value: White=0.27 (precise) /Black=0.52} 1-0

[Event "5th Sharjah Masters 2022"]
[Site "Sharjah"]
[Date "2022.05.22"]
[Round "2.25"]
[White "Baenziger, Fabian"]
[Black "Ganguly, Surya Shekhar"]
[Result "1/2-1/2"]
[ECO "E54"]
[WhiteElo "2430"]
[BlackElo "2616"]
[Annotator "TA"]
[PlyCount "61"]
[EventDate "2022.05.21"]
[EventType "swiss"]
[EventCountry "UAE"]
[SourceTitle "playchess.com"]
[Source "ChessBase"]
[SourceQuality "1"]
[TimeControl "5400+30"]

{[%evp 22,61,12,0,0,0,0,0,0,0,0,0,0,0,0,0,0,0,0,0,0,0,39,42,27,36,35,36,26,0,0,0,0,0,0,0,0,0,0,0,0,0]} 1. d4 {[%emt 0:00:03]} Nf6 {[%emt 0:00:12]} 2. c4 {[%emt 0:00:11]} e6 {[%emt 0:00:10]} 3. Nc3 {[%emt 0:00:27]} Bb4 {[%emt 0:00:12]} 4. e3 {[%emt 0:00:23]} O-O {[%emt 0:00:20]} 5. Bd3 {[%emt 0:00:08]} d5 {[%emt 0:00:15]} 6. Nf3 {[%emt 0:00:42]} dxc4 {[%emt 0:00:18]} 7. Bxc4 {[%emt 0:00:05]} c5 {[%emt 0:00:08]} 8. O-O {[%emt 0:00:07]} cxd4 {[%emt 0:00:06]} 9. exd4 {[%emt 0:00:06]} b6 {[%emt 0:00:07]} 10. Bg5 {[%emt 0:00:42]} h6 {[%emt 0:00:36]} 11. Bh4 {[%emt 0:00:06]} Bb7 {[%emt 0:00:06]} 12. Qe2 {[%emt 0:01:21][%cal Od4d5]} Nbd7 {[%emt 0:00:42] E54: Nimzo-Indian: Rubinstein: Main Line: 7...dxc4 8 Bxc4.} 13. Rac1 {[%emt 0:02:01][%cal Od4d5]} Rc8 {[%emt 0:15:25]} 14. Bd3 {[%emt 0:01:46]} Be7 {[%emt 0:05:11]} 15. Ba6 {[%emt 0:03:54]} Bxa6 {[%emt 0:14:48]} 16. Qxa6 {[%emt 0:00:07]} Qc7 {[%emt 0:00:26]} 17. Nd5 {[%emt 0:02:14]} Qxc1 {[%emt 0:00:59]} 18. Nxe7+ {[%emt 0:00:56]} Kh7 {[%emt 0:07:57]} 19. Nxc8 {[%emt 0:00:09]} Rxc8 {[%emt 0:01:31]} (19... Qxc8 {with more complications.} 20. Qxa7 Qc6 21. Qa6 Nd5) 20. Bxf6 {[%emt 0:00:06]} Nxf6 {[%emt 0:00:40]} 21. Qxa7 {[%emt 0:00:11]} Qxb2 {[%emt 0:00:54]} (21... Qc7 $5 {[%cal Rc7a7]} 22. Qa3 g6 $11) 22. Qxf7 {[%emt 0:00:07]} Qxa2 {[%emt 0:02:17]} 23. h3 {[%emt 0:00:47]} Qd5 {[%emt 0:06:55]} 24. Re1 {[%emt 0:00:31]} Re8 {[%emt 0:01:57] [#]} 25. Ne5 $146 {[%emt 0:23:10] [#] aiming for Re3.} ({Predecessor:} 25. Qc7 b5 26. Re5 Qb3 27. Kh2 Qc4 28. Rc5 Qe2 29. Qg3 b4 30. Rc7 Rg8 31. Rb7 Nd5 32. Qh4 {1-0 (31) Aleksandrov,A-Linnichenko,M (2148) RCCA email 2003}) 25... Qxd4 {[%emt 0:01:19] The position is equal.} 26. Qg6+ {[%emt 0:02:24]} Kg8 {[%emt 0:00:32]} 27. Qf7+ {[%emt 0:06:29]} Kh7 {[%emt 0:00:14]} 28. Qg6+ {[%emt 0:00:06]} Kg8 {[%emt 0:00:05]} 29. Qf7+ {[%emt 0:00:09]} Kh7 30. Qg6+ {[%emt 0:00:30]} Kg8 31. Qf7+ {[%emt 0:00:30] Weighted Error Value: White=0.01 (flawless) /Black=0.02 (flawless)} 1/2-1/2

[Event "5th Sharjah Masters 2022"]
[Site "Sharjah"]
[Date "2022.05.22"]
[Round "2.26"]
[White "Hakobyan, Aram"]
[Black "Assaubayeva, Bibisara"]
[Result "1-0"]
[ECO "B90"]
[WhiteElo "2615"]
[BlackElo "2439"]
[Annotator "TA"]
[PlyCount "69"]
[EventDate "2022.05.21"]
[EventType "swiss"]
[EventCountry "UAE"]
[SourceTitle "playchess.com"]
[Source "ChessBase"]
[SourceQuality "1"]
[TimeControl "5400+30"]

{[%evp 15,69,14,22,25,23,21,25,20,50,25,38,25,45,43,36,35,116,113,126,116,145,136,189,217,179,179,302,314,338,340,360,161,176,82,134,135,139,122,121,129,139,129,129,97,124,128,177,189,29971,29972,29985,29986,29986,29977,12837,12835]} 1. e4 {[%emt 0:00:06]} c5 {[%emt 0:00:04]} 2. Nf3 {[%emt 0:00:08]} d6 {[%emt 0:00:04]} 3. d4 {[%emt 0:00:31]} cxd4 {[%emt 0:00:05]} 4. Nxd4 {[%emt 0:00:08]} Nf6 {[%emt 0:00:02]} 5. Nc3 {[%emt 0:00:11]} a6 {[%emt 0:00:04]} 6. f3 {[%emt 0:04:09]} e5 {[%emt 0:00:17]} 7. Nb3 {[%emt 0:00:05]} Be6 {[%emt 0:01:04]} 8. Be3 {[%emt 0:00:13]} h5 {[%emt 0:02:57]} 9. Nd5 {[%emt 0:00:20] B90: Sicilian Najdorf: Unusual White 6th moves, 6 Be3 Ng4 and 6 Be3 e5.} Bxd5 {[%emt 0:02:13]} 10. exd5 {[%emt 0:03:20]} Nbd7 {[%emt 0:00:04]} 11. Qd2 {[%emt 0:00:25] White has an edge.} Rc8 {[%emt 0:04:23]} 12. O-O-O {[%emt 0:00:11] 12.Na5 is a critical line.} Be7 {[%emt 0:05:40]} 13. Qa5 $5 {[%emt 0:26:18][%mdl 4] [#] Leaves trodden paths.} h4 $146 {[%emt 0:20:55]} ({Predecessor:} 13... O-O 14. Kb1 Re8 15. Be2 g6 16. g4 h4 17. Rhg1 Nh7 18. g5 b6 19. Qd2 b5 {1-0 (46) Nozdrachev,V (2495)-Grebnev,A (2463) Cheliabinsk 2022}) 14. Kb1 {[%emt 0:00:34]} Kf8 {[%emt 0:09:14]} 15. Be2 {[%emt 0:02:38]} Rb8 {[%emt 0:05:19]} (15... Qxa5 $14 16. Nxa5 Rb8) 16. Qb4 $16 {[%emt 0:13:05]} Qc7 {[%emt 0:05:27]} 17. g4 $1 {[%emt 0:00:33]} Nc5 {[%emt 0:08:33]} 18. g5 {[%emt 0:10:23]} Nfd7 {[%emt 0:02:55]} (18... Nh5 $16 19. Qxh4 Kg8) 19. Nxc5 $18 {[%emt 0:02:28]} Nxc5 {[%emt 0:00:58]} 20. f4 {[%emt 0:00:50]} a5 {[%emt 0:07:31]} (20... exf4 {was necessary.} 21. Qxf4 g6) 21. Qc3 {[%emt 0:02:30]} exf4 {[%emt 0:03:02]} 22. Bd4 {[%emt 0:05:23]} (22. Bxf4 Kg8 23. Rhg1 g6 $16) 22... Rg8 {[%emt 0:07:09]} 23. g6 {[%emt 0:00:19]} (23. Rhg1 $142) 23... fxg6 {[%emt 0:02:31] [#]} 24. Bg4 {[%emt 0:04:43]} (24. Rhe1 $1 $18) 24... b6 {[%emt 0:05:17]} (24... g5 $142) 25. Rhe1 $16 {[%emt 0:01:17][%mdl 1024] White has strong compensation.} Qd8 {[%emt 0:00:55]} 26. Be6 {[%emt 0:18:59] This bishop pair is nice.} Bf6 {[%emt 0:04:28][%cal Og6g5] [#]} 27. Qf3 $1 {[%emt 0:00:06]} ({Reject} 27. Bxg8 $6 Kxg8 28. Qf3 g5 $11) 27... g5 {[%emt 0:01:41]} 28. Qh5 {[%emt 0:00:35][%csl Ge6][%cal Rh5f7] Prevents Rh8.} Nxe6 {[%emt 0:00:51]} (28... Qe8 $2 29. Qh7 Nxe6 30. Bxf6 gxf6 31. Rxe6 $18 (31. Qh6+ Rg7 $16)) 29. dxe6 {[%emt 0:02:33][%csl Ge6][%cal Rh5f7]} Rb7 {[%emt 0:00:37] Prevents Qf7+.} 30. Bxf6 $40 {[%emt 0:01:22][%mdl 192] Deflection. White is out for blood. 0x0.00215a464e6fdp-1022s more active pieces. The black rooks are badly placed.} Qxf6 {[%emt 0:00:33]} (30... gxf6 $16 31. Qh6+ Ke8) 31. Rxd6 $18 {[%emt 0:00:20][%cal Oe6e7] e7+! would kill now.} Ke7 $2 {[%emt 0:00:22]} (31... g6 $18 32. e7+ Kg7) 32. Qd1 {[%emt 0:00:30]} Rgb8 {[%emt 0:00:42]} 33. Rd7+ {[%emt 0:00:11]} ({Not} 33. Rc6 Rd8 34. Qf3 Ra7 35. Rxb6 (35. Qa3+ Ke8 $11) 35... Ke8 $16) 33... Ke8 {[%emt 0:00:28]} 34. Qh5+ {[%emt 0:00:27]} g6 {[%emt 0:00:04]} 35. Qh7 {[%emt 0:00:04] Weighted Error Value: White=0.11 (very precise) /Black=0.36} 1-0

[Event "5th Sharjah Masters 2022"]
[Site "Sharjah"]
[Date "2022.05.22"]
[Round "2.27"]
[White "Sargissian, Gabriel"]
[Black "Zawadzka, Jolanta"]
[Result "1-0"]
[ECO "D31"]
[WhiteElo "2694"]
[BlackElo "2409"]
[Annotator "TA"]
[PlyCount "101"]
[EventDate "2022.05.21"]
[EventType "swiss"]
[EventCountry "UAE"]
[SourceTitle "playchess.com"]
[Source "ChessBase"]
[SourceQuality "1"]
[TimeControl "5400+30"]

{[%evp 17,101,0,0,0,0,8,37,48,47,47,43,42,24,39,28,41,41,32,98,83,277,143,141,52,45,51,52,47,39,38,36,37,41,21,32,12,51,51,51,51,51,51,51,19,51,61,62,62,62,62,62,62,62,62,194,170,398,0,328,8,412,351,1351,1256,1230,1131,1290,1300,29973,29973,29974,29975,29975,29974,29977,29978,29980,29978,29981,29981,29983,29984,29987,29988,29987,29988]} 1. d4 {[%emt 0:00:04]} d5 {[%emt 0:00:10]} 2. c4 {[%emt 0:00:18]} e6 {[%emt 0:00:08]} 3. Nc3 {[%emt 0:01:32]} c6 {[%emt 0:00:15]} 4. e4 {[%emt 0:00:44]} dxe4 {[%emt 0:03:33]} 5. Nxe4 {[%emt 0:00:14]} Bb4+ {[%emt 0:00:06]} 6. Bd2 {[%emt 0:04:17]} Qxd4 {[%emt 0:00:43]} 7. Bxb4 {[%emt 0:00:24]} Qxe4+ {[%emt 0:00:05]} 8. Ne2 {[%emt 0:00:29]} Na6 {[%emt 0:06:32][%cal Bb8a6,Ba6b4,Bb4c2][%mdl 32]} 9. Bf8 {[%emt 0:09:38]} Ne7 {[%emt 0:06:43]} (9... Qe5 10. Qd2 $1 Qf6 11. Bd6 $14) 10. Bxg7 {[%emt 0:02:26] D31: Queen's Gambit Declined: Semi-Slav without ...Nf6 (+ Marshall Gambit and Noteboom) and Exchange Variation lines without ...Nf6.} Nb4 {[%emt 0:06:16]} 11. Qd6 {[%emt 0:02:11] 11.Bxh8 is the modern continuation.} Nc2+ {[%emt 0:14:56]} 12. Kd2 {[%emt 0:01:08][%cal Be1d2,Bd2e3,Be3f2][%mdl 32] White is slightly better.} Nxa1 {[%emt 0:00:15]} 13. Bxh8 {[%emt 0:01:23]} e5 {[%emt 0:04:47]} 14. Qxe5 {[%emt 0:01:49]} (14. Bf6 Qc2+ 15. Ke1 Qb1+ 16. Qd1 (16. Kd2 Qxb2+ 17. Ke1 Qb1+ 18. Kd2 Qc2+ 19. Ke1 Qb1+ 20. Kd2 Qb2+ 21. Ke1 Qb1+ $17) 16... Qxa2 $15) 14... Qc2+ {[%emt 0:03:22]} 15. Ke3 {[%emt 0:00:47] Strongly threatening Ng3.} Be6 $1 {[%emt 0:05:58] [#]} 16. f3 $146 {[%emt 0:01:43] Threatens to win with b3.} ({Predecessor:} 16. Nd4 Qd1 17. Bf6 O-O-O 18. Bxe7 Rxd4 19. Qh8+ Kc7 20. Qe5+ Kc8 21. Qh8+ Kc7 22. Qe5+ Kc8 {½-½ (22) Khusnutdinov,R (2476)-Papin,V (2513) Sydney 2015}) 16... O-O-O {[%emt 0:04:38] And now ...Ng6 would win.} 17. Bf6 {[%emt 0:20:17]} ({But not} 17. Kf2 $2 Ng6 18. Qc3 Rxh8 $19) 17... Rd1 {[%emt 0:08:20]} 18. Kf2 $1 $16 {[%emt 0:05:02] Really sharp!} ({Reject} 18. Bxe7 $6 Qd2+ 19. Kf2 Qe1+ 20. Ke3 Qd2+ 21. Kf2 Qe1+ 22. Ke3 Qd2+ $11) 18... Nf5 {[%emt 0:05:40] [#]} (18... Ng6 $16 {is a better defense.} 19. Qe4 Bxc4) 19. Bg5 {[%emt 0:05:50]} (19. g4 $1 $18 {[%cal Rg4f5]} Nd6 20. Bg5) 19... b6 {[%emt 0:04:24]} 20. Qe4 {[%emt 0:03:25]} (20. c5 $16 {Black must now prevent g4.} Kb7 21. Bf4) 20... Qxc4 $14 {[%emt 0:08:55]} 21. Qxc4 {[%emt 0:06:07]} Bxc4 {[%emt 0:00:04]} 22. g4 {[%emt 0:02:52]} Nd6 {[%emt 0:01:39]} 23. b3 {[%emt 0:02:00]} Bxe2 {[%emt 0:05:54]} 24. Kxe2 {[%emt 0:00:17]} Rd5 {[%emt 0:00:03]} 25. Bf4 {[%emt 0:06:14]} Nc2 {[%emt 0:00:11]} 26. Kf2 {[%emt 0:01:22]} Nb4 {[%emt 0:00:24]} 27. Be2 {[%emt 0:04:51]} Kd7 {[%emt 0:04:34]} 28. Rd1 {[%emt 0:02:03]} Rxd1 {[%emt 0:03:08]} 29. Bxd1 {[%emt 0:00:09][%mdl 4096] Endgame KBB-KNN} Nd3+ {[%emt 0:00:13]} 30. Ke3 {[%emt 0:00:11]} Nxf4 {[%emt 0:00:03]} 31. Kxf4 $11 {[%emt 0:00:06] Hoping for g5. KB-KN} f6 {[%emt 0:00:08]} 32. g5 {[%emt 0:01:13]} Ke6 {[%emt 0:00:22]} 33. Bc2 {[%emt 0:03:43]} fxg5+ $1 {[%emt 0:02:11]} 34. Kxg5 {[%emt 0:00:05]} Nf7+ {[%emt 0:00:03]} 35. Kh5 $1 {[%emt 0:01:01]} Ke5 {[%emt 0:01:56] White stays focused until the end.} (35... Ne5 $14) 36. Bxh7 $18 {[%emt 0:00:16]} Kf4 $2 {[%emt 0:00:02]} (36... Kf6 37. h4 Ne5) 37. Be4 $2 {[%emt 0:01:17]} (37. h4 $18) 37... c5 $2 {[%emt 0:00:04][%mdl 8192] [#]} (37... Ne5 $11) 38. a4 $2 {[%emt 0:03:14]} ({Only move:} 38. Kg6 $1 $18 {[%cal Rg6f7]} Ne5+ 39. Kf6) 38... a6 $2 {[%emt 0:00:31][%mdl 8192]} (38... Ne5 $11) 39. Bb7 {[%emt 0:00:57]} Ne5 $2 {[%emt 0:00:06]} (39... a5 40. Be4 Ng5) 40. Bxa6 {[%emt 0:01:57]} Nxf3 {[%emt 0:00:53]} 41. h3 {[%emt 0:00:59]} Kg3 {[%emt 0:01:26]} 42. Kg6 {[%emt 0:00:14]} Kxh3 {[%emt 0:00:40]} 43. Kf6 {[%emt 0:00:09] White mates.} Kg3 {[%emt 0:00:36]} 44. Ke7 {[%emt 0:00:53]} Kf4 {[%emt 0:00:48]} 45. Kd6 {[%emt 0:00:25]} Ne5 {[%emt 0:00:38]} 46. Kc7 {[%emt 0:01:08]} Ke4 {[%emt 0:00:32]} 47. Kxb6 {[%emt 0:01:36]} Kd4 {[%emt 0:00:02]} 48. Bb5 {[%emt 0:01:11]} Kc3 {[%emt 0:00:58]} 49. a5 {[%emt 0:00:15][%cal Ba4a5,Ba5a6][%mdl 32]} Kxb3 {[%emt 0:00:15]} 50. Kxc5 {[%emt 0:00:55]} Ng6 {[%emt 0:00:34]} 51. a6 {[%emt 0:00:14] Weighted Error Value: White=0.29 (precise) /Black=0.56} 1-0